bitfinex-derivatives/quotes_BTCF0:USTF0_20251209
["timestamp","ask_amount","ask_price","bid_price","bid_amount"]
[1765280397858,0.05584539,90290.0,90289.0,0.05677475]
[1765280399352,0.05384539,90290.0,90289.0,0.05677475]
[1765280401858,0.03,90290.0,90289.0,0.05677475]
[1765280402662,0.05544699,90290.0,90289.0,0.05677475]
[1765280402963,0.05544699,90290.0,90289.0,0.05877475]
[1765280403756,0.05544699,90290.0,90289.0,0.05977475]
[1765280404158,0.06652259,90290.0,90289.0,0.05977475]
[1765280404369,0.06652259,90290.0,90289.0,0.05877475]
[1765280404564,0.06652259,90290.0,90289.0,0.05977475]
[1765280411077,0.05544699,90290.0,90289.0,0.05977475]
[1765280411876,0.06652259,90290.0,90289.0,0.05977475]
[1765280412279,0.05544699,90290.0,90289.0,0.05977475]
[1765280413166,0.08518699,90290.0,90289.0,0.02792]
[1765280413376,0.08518699,90290.0,90289.0,0.05639]
[1765280414176,0.11509834,90290.0,90289.0,0.05639]
[1765280416985,0.11509834,90290.0,90289.0,0.0674657]
[1765280418078,0.11509834,90290.0,90289.0,0.05639]
[1765280421379,0.11509834,90290.0,90289.0,0.0674657]
[1765280422790,0.08526834,90290.0,90289.0,0.0674657]
[1765280423289,0.11430834,90290.0,90289.0,0.0674657]
[1765280426891,0.05552834,90290.0,90289.0,0.0674657]
[1765280429390,0.09571394,90290.0,90289.0,0.0674657]
[1765280431088,0.12475394,90290.0,90289.0,0.0674657]
[1765280433288,0.20452177,90290.0,90289.0,0.0674657]
[1765280434693,0.02552834,90290.0,90289.0,0.0674657]
[1765280436201,0.05988867,90290.0,90289.0,0.0674657]
[1765280436387,0.02552834,90290.0,90289.0,0.0674657]
[1765280436786,8.135e-05,90290.0,90289.0,0.0674657]
[1765280436992,0.02552834,90290.0,90289.0,0.0674657]
[1765280438091,8.135e-05,90290.0,90289.0,0.0674657]
[1765280438292,0.02552834,90290.0,90289.0,0.0674657]
[1765280438495,8.135e-05,90290.0,90289.0,0.0674657]
[1765280438692,0.02552834,90290.0,90289.0,0.0674657]
[1765280438992,0.02919135,90290.0,90289.0,0.0674657]
[1765280439190,0.05463834,90290.0,90289.0,0.0674657]
[1765280439586,0.0269786,90290.0,90289.0,0.0674657]
[1765280440991,0.1151286,90290.0,90289.0,0.0674657]
[1765280455300,0.05655,90285.0,90284.0,0.07229]
[1765280455509,0.11344725,90285.0,90284.0,0.0553]
[1765280456397,0.11344725,90285.0,90284.0,0.0573]
[1765280456801,0.12452345,90285.0,90284.0,0.0593]
[1765280458504,0.11344725,90285.0,90284.0,0.0593]
[1765280460808,0.12452345,90285.0,90284.0,0.0593]
[1765280461908,0.11344725,90285.0,90284.0,0.0593]
[1765280466305,0.11344725,90285.0,90284.0,0.004]
[1765280466810,0.17323722,90285.0,90284.0,0.004]
[1765280467010,0.11344725,90285.0,90284.0,0.004]
[1765280467203,0.11344725,90285.0,90284.0,0.0597]
[1765280469313,0.11344725,90285.0,90284.0,0.004]
[1765280470807,0.11344725,90285.0,90284.0,0.0317]
[1765280471410,0.11344725,90285.0,90284.0,0.0597]
[1765280471818,0.11344725,90285.0,90284.0,0.0317]
[1765280473419,0.11344725,90285.0,90284.0,0.0597]
[1765280473622,0.17319383,90285.0,90284.0,0.0597]
[1765280479531,0.17319383,90285.0,90284.0,0.0577]
[1765280479731,0.17319383,90285.0,90284.0,0.0557]
[1765280480722,0.11344725,90285.0,90284.0,0.0557]
[1765280481527,0.11444725,90285.0,90284.0,0.0557]
[1765280483728,0.0659363,90284.0,90282.0,0.00016608]
[1765280484034,0.08175725,90283.0,90282.0,0.00016608]
[1765280484235,0.11175725,90283.0,90282.0,0.00016608]
[1765280484432,0.17151343,90283.0,90282.0,0.00016608]
[1765280484630,0.17151343,90283.0,90282.0,0.05636608]
[1765280486224,0.11175725,90283.0,90282.0,0.05636608]
[1765280488037,0.11175725,90283.0,90282.0,0.05736608]
[1765280489437,0.11175725,90283.0,90282.0,0.05836608]
[1765280490037,0.0110737,90306.0,90300.0,0.0826844]
[1765280490230,0.0110733,90309.0,90300.0,0.0826844]
[1765280490539,0.05502608,90301.0,90300.0,0.0826844]
[1765280491638,0.05502608,90301.0,90300.0,0.0856844]
[1765280492139,0.05502608,90301.0,90300.0,0.0846844]
[1765280493142,0.05502608,90301.0,90300.0,0.0856844]
[1765280494848,0.05502608,90301.0,90300.0,0.0836844]
[1765280495050,0.05502608,90301.0,90300.0,0.0856844]
[1765280495457,0.05502608,90301.0,90300.0,0.0836844]
[1765280495657,0.05502608,90301.0,90300.0,0.0856844]
[1765280496159,0.05502608,90301.0,90300.0,0.0866844]
[1765280496756,0.05502608,90301.0,90300.0,0.0846844]
[1765280496951,0.05502608,90301.0,90300.0,0.0856844]
[1765280498156,0.05502608,90301.0,90300.0,0.0863344]
[1765280498553,0.05502608,90301.0,90300.0,0.0883344]
[1765280498953,0.05502608,90301.0,90300.0,0.0863344]
[1765280499162,0.05502608,90301.0,90300.0,0.0873344]
[1765280501963,0.08004986,90301.0,90300.0,0.0853344]
[1765280502263,0.08004986,90301.0,90300.0,0.0873344]
[1765280504164,0.08004986,90301.0,90300.0,0.0843344]
[1765280504367,0.08004986,90301.0,90300.0,0.0873344]
[1765280504767,0.08004986,90301.0,90300.0,0.0702744]
[1765280505763,0.08004986,90301.0,90300.0,0.0692744]
[1765280505964,0.08004986,90301.0,90300.0,0.0873344]
[1765280506266,0.02518986,90301.0,90300.0,0.0873344]
[1765280506464,0.02518986,90301.0,90300.0,0.09835818]
[1765280506766,0.02518986,90301.0,90300.0,0.09735818]
[1765280507269,0.02518986,90301.0,90300.0,0.09635818]
[1765280507566,0.02518986,90301.0,90300.0,0.09735818]
[1765280507768,0.02518986,90301.0,90300.0,0.0972562]
[1765280507969,0.02518986,90301.0,90300.0,0.0863344]
[1765280508168,0.02518986,90301.0,90300.0,0.0873344]
[1765280508368,0.02518986,90301.0,90300.0,0.0903344]
[1765280509657,0.02518986,90301.0,90300.0,0.10125287]
[1765280509862,0.00016608,90301.0,90300.0,0.10125287]
[1765280512264,0.02519483,90301.0,90300.0,0.10125287]
[1765280512670,0.00016608,90301.0,90300.0,0.10125287]
[1765280512873,0.0673724,90316.0,90315.0,0.0683725]
[1765280513072,0.09240038,90316.0,90315.0,0.0683725]
[1765280515779,0.0110733,90310.0,90309.0,0.0684732]
[1765280515971,0.0686233,90310.0,90309.0,0.0574]
[1765280516171,0.09365128,90310.0,90309.0,0.0574]
[1765280516775,0.09365128,90310.0,90309.0,0.0684733]
[1765280517273,0.09465128,90310.0,90309.0,0.0684733]
[1765280518381,0.09365128,90310.0,90309.0,0.0684733]
[1765280521778,0.09365128,90310.0,90309.0,0.0398333]
[1765280521978,0.09365128,90310.0,90309.0,0.0110733]
[1765280523779,0.0110735,90308.0,90307.0,0.0110735]
[1765280523969,0.14429862,90308.0,90307.0,0.0110735]
[1765280524174,0.1693266,90308.0,90307.0,0.0398335]
[1765280524375,0.1693266,90308.0,90307.0,0.0684735]
[1765280525679,0.1130431,90308.0,90307.0,0.0684735]
[1765280525874,0.02502798,90308.0,90307.0,0.0684735]
[1765280526078,0.05976512,90310.0,90309.0,0.0663433]
[1765280526275,0.08843512,90317.0,90316.0,0.07264]
[1765280526475,0.05375874,90317.0,90316.0,0.0837124]
[1765280526679,0.08260874,90317.0,90316.0,0.0837124]
[1765280527190,0.09368104,90317.0,90316.0,0.0837124]
[1765280527380,0.09368104,90317.0,90316.0,0.05527]
[1765280527879,0.09368104,90317.0,90316.0,0.0683424]
[1765280528085,0.15344616,90317.0,90316.0,0.0683424]
[1765280529088,0.15344616,90317.0,90316.0,0.0693424]
[1765280529381,0.15344616,90317.0,90316.0,0.0683424]
[1765280529572,0.15344616,90317.0,90316.0,0.0673424]
[1765280530086,0.15344616,90317.0,90316.0,0.0663424]
[1765280530977,0.15342523,90317.0,90316.0,0.05527]
[1765280531285,0.09368104,90317.0,90316.0,0.05527]
[1765280532387,0.09468104,90317.0,90316.0,0.05527]
[1765280533475,0.09468104,90317.0,90316.0,0.02752]
[1765280533679,0.09468104,90317.0,90316.0,0.05527]
[1765280533875,0.09468104,90317.0,90316.0,0.0663424]
[1765280534083,0.08360874,90317.0,90316.0,0.0663424]
[1765280534279,0.02608874,90317.0,90316.0,0.0837124]
[1765280534879,0.08360874,90317.0,90316.0,0.0837124]
[1765280535588,0.08260874,90317.0,90316.0,0.0837124]
[1765280535789,0.08260874,90317.0,90316.0,0.0847124]
[1765280536179,0.08260874,90317.0,90316.0,0.0867124]
[1765280539094,0.14235395,90317.0,90316.0,0.0867124]
[1765280539296,0.11350395,90317.0,90316.0,0.0867124]
[1765280539795,0.14235395,90317.0,90316.0,0.0867124]
[1765280541983,0.11350395,90317.0,90316.0,0.0867124]
[1765280542386,0.08260874,90317.0,90316.0,0.0867124]
[1765280547300,0.08260874,90317.0,90316.0,0.0857124]
[1765280547500,0.08260874,90317.0,90316.0,0.0867124]
[1765280548095,0.08260874,90317.0,90316.0,0.0857124]
[1765280548295,0.08260874,90317.0,90316.0,0.0867124]
[1765280548691,0.02508874,90317.0,90316.0,0.0867124]
[1765280549710,0.00596008,90317.0,90316.0,0.0867124]
[1765280549912,0.00016608,90325.0,90324.0,0.0856614]
[1765280550511,0.02869608,90325.0,90324.0,0.0856614]
[1765280550710,0.05630608,90325.0,90324.0,0.0856614]
[1765280557916,0.00016608,90325.0,90324.0,0.0856614]
[1765280558318,0.00016608,90325.0,90324.0,0.09673109]
[1765280559326,0.00016608,90325.0,90324.0,0.0856614]
[1765280559516,0.00016608,90325.0,90324.0,0.09649978]
[1765280561918,0.02470595,90325.0,90324.0,0.09649978]
[1765280563822,0.02470595,90325.0,90324.0,0.0856614]
[1765280564722,0.05323595,90325.0,90324.0,0.0856614]
[1765280564921,0.08084595,90325.0,90324.0,0.0856614]
[1765280565130,0.08084595,90325.0,90324.0,0.07459]
[1765280565526,0.08084595,90325.0,90324.0,0.05673]
[1765280566534,0.08084595,90325.0,90324.0,0.07459]
[1765280569534,0.08084595,90325.0,90324.0,0.05673]
[1765280569727,0.0110723,90317.0,90306.0,0.06796968]
[1765280569931,0.05614,90307.0,90306.0,0.06796968]
[1765280570126,0.09175337,90307.0,90306.0,0.06796968]
[1765280570434,0.09175337,90307.0,90306.0,0.05689608]
[1765280570836,0.09175337,90307.0,90306.0,0.05989608]
[1765280571039,0.09175337,90307.0,90306.0,0.06189608]
[1765280571429,0.09175337,90307.0,90306.0,0.06089608]
[1765280571626,0.09175337,90307.0,90306.0,0.00216608]
[1765280571830,0.09175337,90307.0,90306.0,0.05989608]
[1765280573135,0.03561337,90307.0,90306.0,0.05989608]
[1765280573334,0.02453987,90307.0,90306.0,0.05989608]
[1765280573538,0.0110735,90308.0,90307.0,0.0671335]
[1765280573736,0.06441096,90308.0,90307.0,0.0671335]
[1765280574138,0.09216096,90308.0,90307.0,0.0671335]
[1765280574637,0.09216096,90308.0,90307.0,0.0691335]
[1765280575731,0.06441096,90308.0,90307.0,0.0691335]
[1765280576040,0.09216096,90308.0,90307.0,0.0691335]
[1765280576939,0.09216096,90308.0,90307.0,0.05806]
[1765280581550,0.02453746,90308.0,90307.0,0.05806]
[1765280581935,0.05333746,90308.0,90307.0,0.05806]
[1765280582636,0.08108746,90308.0,90307.0,0.05806]
[1765280583248,0.08106062,90308.0,90307.0,0.05806]
[1765280606662,0.02451062,90308.0,90307.0,0.05806]
[1765280607059,0.05195062,90308.0,90307.0,0.05806]
[1765280607460,0.07910062,90308.0,90307.0,0.05806]
[1765280620471,0.02451062,90308.0,90307.0,0.05806]
[1765280620671,0.02451062,90308.0,90307.0,0.45806]
[1765280620672,0.02015836,90308.0,90307.0,0.45806]
[1765280620879,0.05475608,90325.0,90324.0,0.0754814]
[1765280622179,0.05675608,90325.0,90324.0,0.0754814]
[1765280622583,0.05775608,90325.0,90324.0,0.0754814]
[1765280623684,0.05575608,90325.0,90324.0,0.0754814]
[1765280623872,0.05775608,90325.0,90324.0,0.0754814]
[1765280629881,0.05775608,90325.0,90324.0,0.0668614]
[1765280630282,0.05775608,90325.0,90324.0,0.0836914]
[1765280632596,0.08222656,90325.0,90324.0,0.0836914]
[1765280635493,0.08222656,90325.0,90324.0,0.0668614]
[1765280639495,0.0822282,90325.0,90324.0,0.0668614]
[1765280642800,0.0822282,90325.0,90324.0,0.0843414]
[1765280646597,0.0550782,90325.0,90324.0,0.0843414]
[1765280647499,0.0837082,90325.0,90324.0,0.0843414]
[1765280655204,0.05631,90316.0,90315.0,0.17037177]
[1765280655396,0.08078212,90316.0,90315.0,0.0761524]
[1765280661506,0.02447212,90316.0,90315.0,0.0761524]
[1765280661700,0.05631,90324.0,90323.0,0.0675315]
[1765280661907,0.08080188,90324.0,90323.0,0.0675315]
[1765280662899,0.08180188,90324.0,90323.0,0.0675315]
[1765280663099,0.08280188,90324.0,90323.0,0.0675315]
[1765280666905,0.02649188,90324.0,90323.0,0.0675315]
[1765280668210,0.02649018,90324.0,90323.0,0.0675315]
[1765280669311,0.05480018,90324.0,90323.0,0.0675315]
[1765280672710,0.02649018,90324.0,90323.0,0.0675315]
[1765280675520,0.05480018,90324.0,90323.0,0.0675315]
[1765280675718,0.08445018,90324.0,90323.0,0.0675315]
[1765280678309,0.05480018,90324.0,90323.0,0.0675315]
[1765280678615,0.02649018,90324.0,90323.0,0.0675315]
[1765280679618,0.05480018,90324.0,90323.0,0.0675315]
[1765280680815,0.02649018,90324.0,90323.0,0.0675315]
[1765280683625,0.05480018,90324.0,90323.0,0.0675315]
[1765280684124,0.08445018,90324.0,90323.0,0.0675315]
[1765280686323,0.02649018,90324.0,90323.0,0.0675315]
[1765280686624,0.05480018,90324.0,90323.0,0.0675315]
[1765280688128,0.08445018,90324.0,90323.0,0.0675315]
[1765280698624,0.05480018,90324.0,90323.0,0.0675315]
[1765280699116,0.08332018,90324.0,90323.0,0.0675315]
[1765280700135,0.05480018,90324.0,90323.0,0.0675315]
[1765280700725,0.02649018,90324.0,90323.0,0.0675315]
[1765280700927,8e-08,90324.0,90323.0,0.0675315]
[1765280701621,0.05711008,90324.0,90323.0,0.0675315]
[1765280707038,0.00016608,90325.0,90324.0,0.07541]
[1765280708442,0.00116608,90325.0,90324.0,0.07541]
[1765280709739,0.00216608,90325.0,90324.0,0.07541]
[1765280712843,0.01154694,90340.0,90339.0,0.0864796]
[1765280714445,0.01854694,90340.0,90339.0,0.0864796]
[1765280718048,0.01854694,90340.0,90339.0,0.0110696]
[1765280718247,0.01854694,90340.0,90339.0,0.0694996]
[1765280719046,0.04290998,90340.0,90339.0,0.0694996]
[1765280722549,0.05397948,90340.0,90339.0,0.0694996]
[1765280723748,0.05397948,90340.0,90339.0,0.0110696]
[1765280725850,0.04290998,90340.0,90339.0,0.0401396]
[1765280726147,0.04290998,90340.0,90339.0,0.0690496]
[1765280728138,0.03246998,90340.0,90339.0,0.0690496]
[1765280728339,0.06786415,90340.0,90339.0,0.0690496]
[1765280728640,0.03246998,90340.0,90339.0,0.0690496]
[1765280732551,1e-08,90358.0,90357.0,0.0690474]
[1765280732750,0.00022154,90369.0,90364.0,0.0858165]
[1765280733563,1e-08,90365.0,90364.0,0.09705266]
[1765280734151,1e-08,90365.0,90364.0,0.10105266]
[1765280735655,1e-08,90365.0,90364.0,0.10405266]
[1765280738244,1e-08,90365.0,90364.0,0.0928165]
[1765280739255,1e-08,90365.0,90364.0,0.0898165]
[1765280739757,1e-08,90365.0,90364.0,0.0958165]
[1765280740146,1e-08,90365.0,90364.0,0.0898165]
[1765280740346,1e-08,90365.0,90364.0,0.0958165]
[1765280740753,0.01044001,90365.0,90364.0,0.0958165]
[1765280740949,0.00522001,90365.0,90364.0,0.0958165]
[1765280741251,1e-08,90365.0,90364.0,0.0378365]
[1765280741757,1e-08,90365.0,90364.0,0.0278365]
[1765280741951,1e-08,90365.0,90364.0,0.0368365]
[1765280742351,1e-08,90365.0,90364.0,0.0308365]
[1765280742650,1e-08,90365.0,90364.0,0.0368365]
[1765280743456,1e-08,90365.0,90364.0,0.0308365]
[1765280743657,1e-08,90365.0,90364.0,0.0368365]
[1765280745856,0.01154632,90390.0,90389.0,0.0690435]
[1765280746256,0.03532083,90390.0,90389.0,0.0690435]
[1765280748660,0.03532083,90390.0,90389.0,0.0700435]
[1765280749258,0.00110632,90390.0,90389.0,0.0700435]
[1765280749561,0.19529099,90410.0,90409.0,0.069041]
[1765280749758,0.12488039,90410.0,90409.0,0.069041]
[1765280750463,0.12488039,90410.0,90409.0,0.011061]
[1765280750855,0.12788039,90410.0,90409.0,0.011061]
[1765280752357,0.03720039,90410.0,90409.0,0.069491]
[1765280757358,0.0110619,90402.0,90401.0,0.039912]
[1765280757567,0.03420039,90402.0,90401.0,0.011062]
[1765280758361,0.03620039,90402.0,90401.0,0.011062]
[1765280760273,0.03620039,90402.0,90401.0,0.069272]
[1765280762872,0.04726229,90402.0,90401.0,0.069272]
[1765280763070,0.03620039,90402.0,90401.0,0.011062]
[1765280763375,0.021502,90401.0,90400.0,0.00016597]
[1765280763576,0.08085603,90401.0,90400.0,0.00016597]
[1765280763872,0.04526239,90401.0,90400.0,0.00016597]
[1765280764068,0.04526239,90401.0,90385.0,0.056594]
[1765280764069,0.01044,90386.0,90385.0,0.056594]
[1765280764263,0.03420039,90386.0,90385.0,0.039914]
[1765280764879,0.093751,90386.0,90385.0,0.069274]
[1765280765570,0.03420039,90386.0,90385.0,0.071274]
[1765280766170,0.02898039,90386.0,90385.0,0.071274]
[1765280766371,0.02376039,90386.0,90385.0,0.071274]
[1765280766674,0.01044,90392.0,90391.0,0.0692732]
[1765280766877,0.0001656,90395.0,90394.0,0.05821]
[1765280767274,0.05955061,90406.0,90405.0,0.05821]
[1765280767977,0.07033061,90410.0,90409.0,0.069271]
[1765280768469,0.05955061,90410.0,90409.0,0.069271]
[1765280768670,0.02383008,90410.0,90409.0,0.069271]
[1765280769769,0.03461008,90410.0,90409.0,0.069271]
[1765280770465,0.03661008,90410.0,90409.0,0.069271]
[1765280771867,0.03122008,90410.0,90409.0,0.069271]
[1765280773072,0.02583008,90410.0,90409.0,0.069271]
[1765280773268,0.07949568,90425.0,90424.0,0.05624]
[1765280773471,0.01078,90428.0,90427.0,0.05624]
[1765280774268,0.01078,90420.0,90419.0,0.0840498]
[1765280774474,0.01078,90420.0,90419.0,0.07299]
[1765280776771,0.0218398,90419.0,90418.0,0.00016588]
[1765280777978,0.10133548,90419.0,90418.0,0.00016588]
[1765280778178,0.0218398,90419.0,90418.0,0.00016588]
[1765280778874,0.0228398,90419.0,90418.0,0.00016588]
[1765280783078,0.0228398,90419.0,90418.0,0.03005588]
[1765280783281,0.0228398,90419.0,90418.0,0.00016588]
[1765280785178,0.04629929,90419.0,90418.0,0.00016588]
[1765280787379,0.04629929,90419.0,90418.0,0.03005588]
[1765280787579,0.04629929,90419.0,90418.0,0.05728588]
[1765280787986,0.04629929,90419.0,90418.0,0.03005588]
[1765280788691,0.04629929,90419.0,90418.0,0.00016588]
[1765280792385,0.04629929,90419.0,90418.0,0.03005588]
[1765280796191,0.04629929,90419.0,90418.0,0.05728588]
[1765280799304,0.12575534,90419.0,90418.0,0.05728588]
[1765280799490,0.04629929,90419.0,90418.0,0.05728588]
[1765280800395,0.04629929,90419.0,90418.0,0.00016588]
[1765280800593,0.01078,90391.0,90390.0,0.07525632]
[1765280801796,0.01078,90391.0,90390.0,0.07825632]
[1765280801996,0.01078,90391.0,90390.0,0.08931962]
[1765280802200,0.05963531,90391.0,90390.0,0.09431962]
[1765280802398,0.0110632,90392.0,90391.0,0.05712]
[1765280802601,0.07069851,90392.0,90391.0,0.05712]
[1765280802905,0.0110632,90392.0,90391.0,0.05712]
[1765280803791,0.0110632,90392.0,90391.0,0.06112]
[1765280803993,0.0110632,90392.0,90391.0,0.06312]
[1765280804388,0.0218432,90392.0,90391.0,0.06312]
[1765280804796,0.08147851,90392.0,90391.0,0.06112]
[1765280805002,0.0218432,90392.0,90391.0,0.06312]
[1765280805305,0.08147851,90392.0,90391.0,0.06312]
[1765280805604,0.0218432,90392.0,90391.0,0.06312]
[1765280805803,0.0218432,90392.0,90391.0,0.05912]
[1765280806005,0.08145613,90392.0,90391.0,0.06312]
[1765280806204,0.0218432,90392.0,90391.0,0.06312]
[1765280806405,0.0218432,90392.0,90391.0,0.06112]
[1765280806790,0.0218432,90392.0,90391.0,0.03189]
[1765280807203,0.0218432,90392.0,90391.0,0.05912]
[1765280807795,0.0218432,90392.0,90391.0,0.06012]
[1765280808302,0.08145613,90392.0,90391.0,0.06012]
[1765280808889,0.0218432,90392.0,90391.0,0.003]
[1765280809501,0.0218432,90392.0,90391.0,0.002]
[1765280809700,0.01078,90391.0,90390.0,0.00110632]
[1765280816009,0.01078,90391.0,90390.0,0.03087632]
[1765280820198,0.01078,90391.0,90390.0,0.00110632]
[1765280820813,0.09037606,90391.0,90390.0,0.00110632]
[1765280821205,0.01078,90391.0,90390.0,0.00110632]
[1765280823407,0.09012005,90391.0,90390.0,0.07636632]
[1765280823810,0.01078,90391.0,90390.0,0.07636632]
[1765280824111,0.0218432,90392.0,90391.0,0.05792]
[1765280825913,0.0164532,90392.0,90391.0,0.05792]
[1765280826118,0.0110632,90392.0,90391.0,0.05792]
[1765280826415,0.0164532,90392.0,90391.0,0.05792]
[1765280827204,0.0164532,90392.0,90391.0,0.05892]
[1765280827408,0.0218432,90392.0,90391.0,0.05892]
[1765280827614,0.0218432,90392.0,90391.0,0.05792]
[1765280827811,0.0218432,90392.0,90391.0,0.05992]
[1765280829119,0.0164532,90392.0,90391.0,0.05992]
[1765280829310,0.011063,90394.0,90393.0,0.05792]
[1765280830114,0.0110625,90397.0,90395.0,0.05792]
[1765280830316,0.01122777,90400.0,90399.0,0.0689822]
[1765280831723,0.01122777,90400.0,90399.0,0.0709822]
[1765280832422,0.07086169,90400.0,90399.0,0.0709822]
[1765280832623,0.07086169,90400.0,90399.0,0.06092]
[1765280833121,0.02200777,90400.0,90399.0,0.06092]
[1765280834232,0.0816392,90400.0,90399.0,0.05892]
[1765280834432,0.02200777,90400.0,90399.0,0.06092]
[1765280835229,0.01661777,90400.0,90399.0,0.06092]
[1765280835532,0.07624421,90400.0,90399.0,0.06092]
[1765280835833,0.07624421,90400.0,90399.0,0.05992]
[1765280836031,0.07085421,90400.0,90399.0,0.05992]
[1765280836514,0.00016557,90400.0,90399.0,0.05992]
[1765280837118,0.00016557,90400.0,90399.0,0.05892]
[1765280837328,0.00016557,90400.0,90399.0,0.06092]
[1765280838120,0.00016557,90400.0,90399.0,0.05992]
[1765280838429,0.00016557,90400.0,90399.0,0.06092]
[1765280840332,0.07068754,90409.0,90408.0,0.07526]
[1765280841331,0.0110611,90409.0,90408.0,0.07526]
[1765280842133,0.05962644,90410.0,90409.0,0.067611]
[1765280842436,0.05962644,90411.0,90410.0,0.05737]
[1765280842622,0.09408134,90418.0,90411.0,0.0684308]
[1765280842623,0.05962644,90412.0,90411.0,0.0684308]
[1765280842824,0.05962644,90413.0,90411.0,0.0684308]
[1765280843025,0.07068684,90414.0,90413.0,0.05737]
[1765280843426,0.0110604,90414.0,90413.0,0.05737]
[1765280843733,0.0166104,90414.0,90413.0,0.05737]
[1765280844334,0.0166104,90414.0,90413.0,0.0684305]
[1765280844926,0.0120604,90414.0,90413.0,0.0684305]
[1765280845733,0.001,90414.0,90413.0,0.0684305]
[1765280846532,0.0121,90414.0,90413.0,0.05737]
[1765280850034,0.001,90414.0,90413.0,0.05737]
[1765280850740,0.0121,90414.0,90413.0,0.05737]
[1765280851540,0.07172644,90414.0,90413.0,0.05737]
[1765280852341,0.07172644,90414.0,90413.0,0.0684305]
[1765280853040,0.06617644,90414.0,90413.0,0.0684305]
[1765280853442,0.00655,90414.0,90413.0,0.0684305]
[1765280853651,0.0121,90414.0,90413.0,0.05737]
[1765280854546,0.001,90414.0,90413.0,0.05737]
[1765280855047,0.0121,90414.0,90413.0,0.05737]
[1765280855838,0.0121,90414.0,90413.0,0.0684305]
[1765280856743,0.0111,90403.0,90402.0,0.04638]
[1765280857055,0.05962,90373.0,90372.0,0.07451545]
[1765280857342,0.05962,90373.0,90372.0,0.02914545]
[1765280857940,0.14903599,90373.0,90372.0,0.02914545]
[1765280859053,0.0706862,90367.0,90366.0,0.02904]
[1765280859932,0.07079917,90367.0,90366.0,0.05737]
[1765280860354,0.13029178,90367.0,90366.0,0.05737]
[1765280860649,0.07079917,90367.0,90366.0,0.06737]
[1765280861746,0.01579917,90367.0,90366.0,0.06737]
[1765280861948,0.03486537,90367.0,90366.0,0.06737]
[1765280867555,0.03486537,90367.0,90366.0,0.08441]
[1765280869762,0.03486537,90367.0,90366.0,0.08141]
[1765280870356,0.03486537,90367.0,90366.0,0.07841]
[1765280881674,0.03486537,90367.0,90354.0,0.01704]
[1765280881675,0.0611476,90355.0,90354.0,0.02741]
[1765280881870,0.06125529,90355.0,90354.0,0.02741]
[1765280882269,0.12064957,90355.0,90354.0,0.02741]
[1765280882967,0.12064957,90355.0,90354.0,0.03341]
[1765280883168,0.06125529,90355.0,90354.0,0.03341]
[1765280883476,0.06125529,90355.0,90354.0,0.06098]
[1765280883863,0.06125529,90355.0,90354.0,0.06398]
[1765280884472,0.06125529,90355.0,90354.0,0.0808]
[1765280891669,0.06125529,90355.0,90354.0,0.06398]
[1765280892578,0.06325529,90355.0,90354.0,0.05798]
[1765280892877,0.06425529,90355.0,90354.0,0.05498]
[1765280893577,0.06325529,90355.0,90354.0,0.05498]
[1765280893779,0.06425529,90355.0,90354.0,0.05498]
[1765280894480,0.06225529,90355.0,90354.0,0.05498]
[1765280894781,0.06425529,90355.0,90354.0,0.05498]
[1765280896179,0.06225529,90355.0,90354.0,0.05498]
[1765280896378,0.06425529,90355.0,90354.0,0.05498]
[1765280898672,0.06325529,90355.0,90354.0,0.05498]
[1765280898982,0.06425529,90355.0,90354.0,0.05498]
[1765280899681,0.06225529,90355.0,90354.0,0.05498]
[1765280901878,0.00110769,90355.0,90354.0,0.05498]
[1765280903077,0.00110769,90355.0,90354.0,0.05598]
[1765280903279,0.00010769,90355.0,90354.0,0.05598]
[1765280903580,0.00010769,90355.0,90354.0,0.05698]
[1765280904277,0.05018769,90355.0,90354.0,0.05698]
[1765280905583,0.05018769,90355.0,90354.0,0.05498]
[1765280906188,0.05118769,90355.0,90354.0,0.05498]
[1765280906375,0.13070839,90355.0,90354.0,0.05498]
[1765280906576,0.12970839,90355.0,90354.0,0.05498]
[1765280906778,0.13070839,90355.0,90354.0,0.05498]
[1765280907988,0.05118769,90355.0,90354.0,0.05498]
[1765280908586,0.05008,90355.0,90354.0,0.05054999]
[1765280908787,0.0511605,90355.0,90354.0,0.05054999]
[1765280909390,0.0531605,90355.0,90354.0,0.05054999]
[1765280909777,0.0511605,90355.0,90354.0,0.05054999]
[1765280909973,0.0521605,90355.0,90354.0,0.05054999]
[1765280910278,0.0511605,90355.0,90354.0,0.05054999]
[1765280912486,0.0501605,90355.0,90354.0,0.05054999]
[1765280912689,0.0511605,90355.0,90354.0,0.05054999]
[1765280915198,0.0010805,90355.0,90354.0,0.05054999]
[1765280915884,8.05e-05,90355.0,90354.0,0.05054999]
[1765280916179,0.0010805,90355.0,90354.0,0.05054999]
[1765280916384,0.0010805,90355.0,90354.0,0.06161769]
[1765280916585,0.0010805,90355.0,90354.0,0.05054999]
[1765280917784,0.0562605,90355.0,90354.0,0.05054999]
[1765280918192,0.0552605,90355.0,90354.0,0.05054999]
[1765280919393,0.0562605,90355.0,90354.0,0.05054999]
[1765280919692,0.0572605,90355.0,90354.0,0.05054999]
[1765280920389,0.0572605,90355.0,90345.0,0.00016598]
[1765280920390,0.0662487,90346.0,90345.0,0.00016598]
[1765280920888,0.0776096,90346.0,90345.0,0.02766598]
[1765280921388,0.0110698,90337.0,90336.0,0.04636]
[1765280921595,0.06635361,90337.0,90336.0,0.07386]
[1765280922793,0.06635361,90337.0,90336.0,0.07886]
[1765280923585,0.14595482,90337.0,90336.0,0.06204]
[1765280923790,0.06635361,90337.0,90336.0,0.06204]
[1765280927496,0.15361821,90337.0,90336.0,0.06204]
[1765280932492,0.08736841,90337.0,90336.0,0.06204]
[1765280932687,0.14695637,90337.0,90336.0,0.06204]
[1765280933692,0.17484637,90337.0,90336.0,0.06204]
[1765280933886,0.21447617,90337.0,90336.0,0.06204]
[1765280934090,0.15488821,90337.0,90336.0,0.06204]
[1765280936402,0.08736841,90337.0,90336.0,0.07311]
[1765280936702,0.11525841,90337.0,90336.0,0.07311]
[1765280937204,0.14381841,90337.0,90336.0,0.07311]
[1765280938601,0.14381841,90337.0,90336.0,0.06204]
[1765280939799,0.00010381,90337.0,90336.0,0.06204]
[1765280942904,0.05655381,90337.0,90336.0,0.06204]
[1765280943305,0.00010381,90337.0,90336.0,0.06204]
[1765280950418,0.00016598,90346.0,90345.0,0.0872389]
[1765280950602,0.0680365,90364.0,90363.0,0.05924]
[1765280952917,0.15912501,90364.0,90363.0,0.05924]
[1765280953218,0.0700365,90364.0,90363.0,0.05924]
[1765280953414,0.0680365,90364.0,90363.0,0.05924]
[1765280953808,0.15465543,90364.0,90363.0,0.05924]
[1765280954010,0.0680365,90364.0,90363.0,0.05924]
[1765280954314,0.07261,90355.0,90354.0,0.05940598]